Cogmind - Beta 12 @@@ ROGUE MODE // 2023.11.11 @ 19:48:52 Player: Ev Result: Self-destructed Performance ------------- Evolutions (1) 500 Regions Visited (3) 600 Robots Destroyed (34) 170 Value Destroyed (828) 828 Prototype IDs (1) 20 Alien Tech Used (0) 0 Bonus (0) 0 TOTAL SCORE: 2118 Bonus ------- None Cogmind --------- Core Integrity 267/400 Matter 260/300 Energy 265/265 System Corruption 0% Temperature Cool (0) Movement Core (550) Ox10 Location -9/Storage Parts ------- > --- POWER (1) -------- Improved Ion Engine > --- PROPULSION (2) --- (None) > --- UTILITY (4) ------ Medium Storage Unit Sensor Array ECM Suite Medium Armor Plating > --- WEAPON (2) ------- Particle Cannon > --- INVENTORY (10) --- Ion Engine Improved Treads Armored Wheel Armored Wheel High-capacity Storage Unit Advanced Weight Redist. System Propulsion Shielding Utility Shielding Medium Armor Plating Improved Medium Laser Peak State ------------ > --- POWER ------------ Ion Engine > --- PROPULSION ------- Light Treads Improved Treads > --- UTILITY ---------- Medium Storage Unit Sensor Array ECM Suite Medium Armor Plating > --- WEAPON ----------- Improved Medium Laser Particle Cannon > --- INVENTORY -------- Ion Engine Armored Wheel Armored Wheel High-capacity Storage Unit Advanced Weight Redist. System Propulsion Shielding Utility Shielding Medium Armor Plating Particle Cannon [Rating: 15] Favorites ----------- Power Ion Engine Engine Ion Engine Propulsion Improved Treads Treads Improved Treads Leg Aluminum Leg Wheel Armored Wheel Utility Medium Storage Unit Device Sensor Array Storage Medium Storage Unit Protection Medium Armor Plating Weapon Particle Cannon Energy Gun Medium Laser Energy Cannon Particle Cannon Ballistic Gun Assault Rifle Build | -11 -10 -9 -9 ------- Run | Jun Mat Mat Sto Slots Evolved 2 | . . 2 . Power . | . . . . Propulsion . | . . . . Utility 2 | . . 2 . Weapon . | . . . . Parts Attached 36 | 6 9 10 11 Power 6 | 1 3 1 1 Engine 6 | 1 3 1 1 Core . | . . . . Reactor . | . . . . Propulsion 7 | 2 2 2 1 Treads 3 | . . 2 1 Leg 2 | 2 . . . Wheel 2 | . 2 . . Hover . | . . . . Flight . | . . . . Utility 10 | 1 2 3 4 Device 2 | . 1 1 . Storage 2 | 1 1 . . Processor . | . . . . Hackware . | . . . . Protection 6 | . . 2 4 Artifact . | . . . . Weapon 13 | 2 2 4 5 Energy Gun 5 | 1 1 2 1 Energy Cannon 6 | . . 2 4 Ballistic Gun 2 | 1 1 . . Ballistic Cannon . | . . . . Launcher . | . . . . Special Weapon . | . . . . Impact Weapon . | . . . . Slashing Weapon . | . . . . Piercing Weapon . | . . . . Special Melee Weapon . | . . . . Unidentified Prototypes 1 | . . . 1 Parts Lost 8 | . 1 5 2 Power 2 | . . 1 1 Propulsion 1 | . . . 1 Utility 1 | . . 1 . Weapon 4 | . 1 3 . Highest Loss Streak 3 | . 1 3 2 To Critical Strikes . | . . . . Average Slot Usage (%) 95 | . 94 98 95 Engine 12 | . 14 11 10 Treads 10 | . . 16 18 Leg 5 | . 14 . . Wheel 6 | . 13 5 . Device 16 | . 9 22 22 Storage 12 | . 14 11 11 Protection 6 | . . 10 10 Energy Gun 6 | . 13 4 . Energy Cannon 11 | . . 15 21 Ballistic Gun 6 | . 14 1 . Naked Turns . | . . . . Heaviest Build 35 | 12 21 29 35 Greatest Support 43 | 20 24 43 43 Greatest Overweight (x) 10 | . 6 1 10 Average Overweight (x) . | . . . . Largest Inventory Capacity 10 | 8 10 10 10 Average Capacity 9 | 6 9 10 10 Most Carried 10 | 4 10 10 10 Average Carried 8 | 2 7 9 8 Final Capacity 10 | 8 10 10 10 Final Carried 10 | 4 10 10 10 Class Distribution -------------------- 100% | Mutant Dominant Class ---------------- Mutant | -10/Materials Mutant | -9/Materials Mutant | -9/Storage Resources | -11 -10 -9 -9 ----------- Run | Jun Mat Mat Sto Matter Collected 660 | 195 271 90 104 Remotely . | . . . . Salvage Created 1422 | . 338 371 713 Parts 87 | . 20 22 45 Haulers Intercepted 5 | . 1 1 3 Recyclers Shooed 1 | . . . 1 Parts Field Recycled . | . . . . Retrieved Matter . | . . . . Parts Self-Destructed . | . . . . Prevented . | . . . . Kills | -11 -10 -9 -9 ------- Run | Jun Mat Mat Sto Combat Hostiles Destroyed 20 | . 8 6 6 Guns 9 | . 8 1 . Cannons 11 | . . 5 6 Classes Destroyed 8 | . 5 1 2 Worker 2 | . . . 2 Hauler 5 | . 1 1 3 Recycler 3 | . . . 3 Operator 1 | . 1 . . Watcher 3 | . 1 1 1 Swarmer 3 | . 3 . . Grunt 10 | . 5 3 2 Sentry 7 | . . 3 4 Best Kill Streak 7 | . 3 3 7 Combat Bots Only 3 | . 3 3 3 Max Kills in Single Turn 2 | . 1 1 2 Gunslinging . | . . . . Exploded . | . . . . Melee . | . . . . Uniques/NPCs Destroyed . | . . . . Combat | -11 -10 -9 -9 -------- Run | Jun Mat Mat Sto Damage Taken 1293 | . 573 526 194 Core 304 | . 171 133 . Absorbed by Shields . | . . . . Redirected to Shielding 4 | . . 4 . Core Remaining (%) 65 | 100 31 . . Volleys Fired 82 | . 39 19 24 Largest 2 | . 2 2 2 Hottest 136 | . 85 136 136 Shots Fired 164 | . 78 38 48 Gun 84 | . 78 6 . Cannon 80 | . . 32 48 Launcher . | . . . . Special . | . . . . Kinetic 43 | . 43 . . Thermal 121 | . 35 38 48 Explosive . | . . . . Electromagnetic . | . . . . Robot Hit Streak 12 | . 6 8 12 Robot Miss Streak 3 | . 3 3 3 Penetration Max . | . . . . Secondary Targets 1 | . 1 . . Max Gunslinging Chain 1 | . 1 . . Shots Hit Robots 105 | . 45 27 33 Core Hits 42 | . 17 9 16 Critical Kills 1 | . 1 . . Critical Parts Destroyed 1 | . 1 . . Critical Strikes 4 | . 4 . . Burn 2 | . 2 . . Destroy 2 | . 2 . . Melee Attacks . | . . . . Impact . | . . . . Slashing . | . . . . Piercing . | . . . . Sneak Attacks . | . . . . Combat Hostiles . | . . . . Follow-up Attacks . | . . . . Damage Inflicted 1822 | . 561 540 721 Guns 652 | . 561 91 . Cannons 1170 | . . 449 721 Explosions . | . . . . Melee . | . . . . Ramming . | . . . . Kinetic 257 | . 257 . . Thermal 1565 | . 304 540 721 Explosive . | . . . . Electromagnetic . | . . . . Impact . | . . . . Slashing . | . . . . Piercing . | . . . . Highest Corruption . | . . . . Average Corruption . | . . . . Corruption Purged . | . . . . Corruption Blocked . | . . . . Overload Shots . | . . . . Overflow Damage 10 | . . . 10 Projectiles 10 | . . . 10 Explosions . | . . . . Melee . | . . . . Knockbacks . | . . . . Impact . | . . . . Kinetic . | . . . . Secondary . | . . . . Self-Inflicted Damage . | . . . . Shots . | . . . . Rammed . | . . . . Targets Rammed . | . . . . Kicked . | . . . . Crushed . | . . . . Highest Temperature 577 | . 258 577 370 Average Temperature 134 | . 67 214 133 Received Heat Transfer 447 | . 258 120 69 Effects 12 | . 1 10 1 Shutdowns 2 | . . 1 1 Energy Bleed 1 | . 1 . . Matter Decay 1 | . . 1 . Damage (minor) 1 | . . 1 . Damage (major) 6 | . . 6 . Damage (core) 1 | . . 1 . Siege Activations . | . . . . Robots Corrupted . | . . . . Combat Hostiles . | . . . . Parts Fried . | . . . . Impact Corruptions . | . . . . Robots Melted . | . . . . Combat Hostiles . | . . . . Parts Melted 8 | . 1 5 2 Heat Transferred 3330 | . 999 1036 1295 Parts Sabotaged . | . . . . Parts Stolen . | . . . . Parts Stripped . | . . . . Power Chain Reactions . | . . . . Missiles Intercepted . | . . . . Alert | -11 -10 -9 -9 ------- Run | Jun Mat Mat Sto Peak Influence 245 | . 120 245 171 Initial 5 | . . 1 5 Average 43 | . 27 75 49 Maximum Alert Level 1 | . . 1 . Low Security (%) 98 | 100 100 92 100 Level 1 1 | . . 7 . Level 2 . | . . . . Level 3 . | . . . . Level 4 . | . . . . Level 5 . | . . . . High Security . | . . . . Max Security . | . . . . Squads Dispatched 4 | . 2 2 . Investigation 2 | . 1 1 . Extermination . | . . . . Reinforcement 2 | . 1 1 . Assault . | . . . . Garrison . | . . . . Intercept . | . . . . Searches Triggered . | . . . . Construction Impeded . | . . . . Haulers Reinforced . | . . . . Active Scanning Responses . | . . . . Cargo Convoy Interrupts . | . . . . Stealth | -11 -10 -9 -9 --------- Run | Jun Mat Mat Sto Distress Signals 2 | . . 1 1 Communications Jammed . | . . . . Distress Signals . | . . . . Times Spotted 45 | . 18 13 14 Peak Tracking Total 5 | . 5 5 4 Tactical Retreats 4 | . . . 4 Traps | -11 -10 -9 -9 ------- Run | Jun Mat Mat Sto Traps Triggered 7 | . 2 2 3 Indirectly . | . . . . Trap Hack Attempts . | . . . . Triggered . | . . . . Disarmed . | . . . . Reprogrammed . | . . . . Reused . | . . . . Traps Extracted . | . . . . Installed . | . . . . Triggered . | . . . . Machines | -11 -10 -9 -9 ---------- Run | Jun Mat Mat Sto Machines Disabled 1 | . . 1 . Max in Single Turn 1 | . . 1 . Machines Repaired . | . . . . Machines Sabotaged . | . . . . Overloaded Fab Kills . | . . . . Hacking | -11 -10 -9 -9 --------- Run | Jun Mat Mat Sto Machines Accessed 7 | . 3 3 1 Terminals 6 | . 2 3 1 Fabricators . | . . . . Repair Stations . | . . . . Recycling Units 1 | . 1 . . Scanalyzers . | . . . . Garrison Access . | . . . . Total Hacks 14 | . 5 7 2 Successful 9 | . 4 4 1 Failed 5 | . 1 3 1 Catastrophic 1 | . . 1 . Database Lockouts . | . . . . Manual 6 | . 2 2 2 Terminals 12 | . 3 7 2 Fabricators . | . . . . Repair Stations . | . . . . Recycling Units 2 | . 2 . . Scanalyzers . | . . . . Garrison Access . | . . . . Terminal Hacks 3 | . 1 2 . Locate Traps 1 | . . 1 . Zone Layout 2 | . 1 1 . Fabricator Hacks . | . . . . Repair Station Hacks . | . . . . Recycling Unit Hacks 1 | . 1 . . Retrieve Components 1 | . 1 . . Scanalyzer . | . . . . Garrison Access Hacks . | . . . . Unauthorized Hacks 5 | . 2 2 1 Terminals 5 | . 2 2 1 Track 5 | . 2 2 1 Fabricators . | . . . . Repair Stations . | . . . . Recycling Units . | . . . . Scanalyzers . | . . . . Garrison Access . | . . . . Data Cores Recovered . | . . . . Used . | . . . . Hacking Detections 3 | . 2 1 . Full Trace Events . | . . . . Feedback Events . | . . . . Feedback Blocked . | . . . . Robot Schematics Acquired . | . . . . Robots Built . | . . . . Authchips . | . . . . Time . | . . . . Total Robot Build Rating . | . . . . Part Schematics Acquired . | . . . . Parts Built . | . . . . Authchips . | . . . . Time . | . . . . Total Part Build Rating . | . . . . Parts Repaired . | . . . . Time . | . . . . Parts Recycled . | . . . . Recycled Matter . | . . . . Retrieved Matter . | . . . . Retrieved Components . | . . . . Parts Scanalyzed . | . . . . Part Schematics Acquired . | . . . . Parts Damaged . | . . . . Bothacking | -11 -10 -9 -9 ------------ Run | Jun Mat Mat Sto Used RIF Installer . | . . . . Robots Hacked . | . . . . Non-combat . | . . . . Combat . | . . . . Robot Hacks Applied . | . . . . Relay Couplers Released . | . . . . Fabnet Peak Effective % . | . . . . Robots Rewired . | . . . . Allies Hacked . | . . . . Hacks Repelled . | . . . . Allies | -11 -10 -9 -9 -------- Run | Jun Mat Mat Sto Total Allies . | . . . . Largest Group . | . . . . Highest-Rated Group . | . . . . Highest-Rated Ally . | . . . . Total Orders . | . . . . Ally Attacks . | . . . . Total Damage . | . . . . Kills . | . . . . Allies Corrupted . | . . . . Allies Melted . | . . . . Intel | -11 -10 -9 -9 ------- Run | Jun Mat Mat Sto Robot Analysis Total . | . . . . Derelict Logs Recovered . | . . . . Drone Launches . | . . . . Drone Recoveries . | . . . . Exploration | -11 -10 -9 -9 ------------- Run | Jun Mat Mat Sto Turns Passed 2229 | 71 886 412 860 Spaces Moved 1062 | 53 605 199 205 Core 20 | 11 2 . 7 Treads 307 | . . 109 198 Legs 321 | 42 279 . . Wheels 414 | . 324 90 . Hover . | . . . . Flight . | . . . . Fastest Speed 50 | 50 90 90 160 Average Speed 125 | 105 104 128 186 Slowest Speed 550 | 120 350 160 550 Overloaded Moves . | . . . . Propulsion Burnouts . | . . . . Robots Hopped . | . . . . Cave-ins Triggered . | . . . . Exploration Rate (%) 32 | 3 69 26 30 Regions Visited 3 Branch Regions 1 Pre-discovered Areas . | . . . . Known Exits Taken . | . . . . Unknown Exits Taken 3 | 1 1 1 . Scrap Searched . | . . . . Spaces Dug . | . . . . Terrain Destroyed . | . . . . Melee . | . . . . Projectile . | . . . . AOE . | . . . . Terrain Rammed . | . . . . Walls Destroyed . | . . . . Machines Disabled . | . . . . Actions | -11 -10 -9 -9 --------- Run | Jun Mat Mat Sto Total 1799 | 68 781 318 632 Wait 568 | . 108 75 385 Move 1059 | 52 604 198 205 Hop . | . . . . Pick Up 40 | 10 14 10 6 Fast Attach 3 | . . . 3 Attach 21 | 6 4 6 5 Detach . | . . . . Swap 12 | . 5 4 3 Drop 14 | . 7 6 1 Fire 82 | . 39 19 24 Melee . | . . . . Ram . | . . . . Kick . | . . . . Crush . | . . . . Escape Stasis . | . . . . Rewire . | . . . . Trap . | . . . . Miscellaneous . | . . . . Route ------- -11/Junkyard -10/Materials (discovered 4 exits: *Mat x2 / [*Min x2]) -9/Materials (discovered 2 exits: *Sto x2) -9/Storage History --------- Turn | Location | Event 7 | -11/Junkyard | Discovered new exit (range 15) 72 | -11/Junkyard | Entered Materials 142 | -10/Materials | Discovered new exit (range 16) 261 | -10/Materials | Discovered new exit (range 12) 336 | -10/Materials | Build established: Mutant 486 | -10/Materials | Discovered new exit (range 6) 787 | -10/Materials | Discovered new exit (range 15) 831 | -10/Materials | Core integrity fell below 50% 958 | -10/Materials | Entered another Materials area 958 | -9/Materials | Evolved 2 slots: Utility x2 1302 | -9/Materials | Discovered new exit (range 15) 1359 | -9/Materials | Discovered new exit (range 15) 1370 | -9/Materials | Entered Storage 1400 | -9/Storage | Lost 3 parts (1u2w) 2230 | -9/Storage | Self-destructed Last Messages --------------- 02184_ Imp. Treads severed. 02184_ Med. Armor Plating severed. 02184_ Particle Cannon severed. 02187_ R-06 Scavenger collects Com. Wheel. 02191_ R-06 Scavenger collects Lgt. Treads. 02195_ Acquired Imp. Treads. 02200_ Acquired Med. Armor Plating. 02205_ U-05 Engineer lays Concrete. 02207_ Acquired Particle Cannon. 02212_ Triggered Blade Trap. 02212_ Massive razor-sharp blades shoot up from within the floor. 02212_ Med. Armor Plating severed. 02212_ Imp. Treads severed. 02212_ Particle Cannon severed. 02213_ U-05 Engineer lays Concrete. 02216_ R-06 Scavenger collects Hvy. Assault Rifle. 02218_ Acquired Imp. Treads. 02222_ R-06 Scavenger collects Sml. Storage Unit. 02223_ Acquired Med. Armor Plating. 02225_ R-06 Scavenger collects Particle Cannon. Map ----- +----------------------------------------------------+ | | | | | | | | | | | | | | | | | | | | | ?????????????????????????????????????????????????? | | ?????????????????????????????????????????????????? | | ?????????????????????????????????????????????????? | | ???????????????????????##????????????????????????? | | ??????????????????????##%########????????????????? | | ??????????????????????#[[!""""" #????????????????? | | ??????????????????????# """"" #????????????????? | | ??????????????????????# """"" #????????????????? | | ??????????????????????# #????????????????? | | ??????????????????????# #?????######?????? | | ??????????????????????# #?????#! #?????? | | ??????????????????????# #?????#] !##????? | | ?????????????##???????# % #?????# # ##### | | ?????????????# ########/########### !# | | ?????????????# % r g / # ! | | ?????????????# T % @^^u########## # | | ?????????????# u ^^ #????????# # """ " | | ?????????????# ########+######????#[ # """ " | | ?????????????## ???# #????# !# """ " | | ??????????????????# #????####+# | | ??????????????????## #???????#%# | | ???????????????????# """"" """"" #???????#%#####+# | | ???????????????????# """"" """"" #???????#%%!! | | ???????????????????# """"" """"" #???????#%%*= | | ???????????????????###############???????#=!!= | | ?????????????????????????????????????????#%=%% | | ??????????????????????????????????########** ^ | | ??????????????????????????????????# """ # !!! # | | ??????????????????????????????????# """ # !!! # | | ??????????????????????????????????# """ + !! % # | | ??????????????????????????????????# ####### # | | ??????????????????????????????????# #?????# # | | ??????????????????????????????????#! #?????# # | | ??????????????????????????????????########?????# # | | ???????????????????????????????????????????????# # | | ??????????????????????????????????????????????? # | | ???????????????????????????????????????????????# # | | ???????????????????????????????????????????????# # | | ???????????????????????????????????????????????? # | | ???????????????????????????????????????????????? ? | +----------------------------------------------------+ Best States ------------- Heat Dissipation 28 Energy Generation 12 Energy Capacity 265 Matter Stores 300 Matter Capacity 300 Sight Range 16 Robot Scan Range 14 Terrain Scan Density 10 ECM Strength 1 Armor Coverage 225 Utility Shielding 33 Evasion (%) 55 Recoil Reduction 2 Item Schematics ----------------- None Robot Schematics ------------------ None Fabricated ------------ Nothing Alien Tech Used ----------------- None Achievements -------------- None Challenges ------------ None Game ------ Seed SingularityVisualScythe Manual? 0 Play Time 00:23:58 Cumulative 20.8 hours Start 2023.11.11 @ 19:24:25 End 2023.11.11 @ 19:48:52 Sessions 1 Manual Loads 0 Difficulty Rogue Special Mode None Game No. 47 Rogue 47 Adventurer 0 Explorer 0 Win Type - Total 0 Types 0/0/0/0/0/0/0/0/0 Lore% 11 Gallery% 22 Achievement% 15 Wizard Run 0 Options --------- ASCII 0 Keyboard 0 Movement Mouse Keybinds 0 Fullscreen 1 Font 24/Smallcaps Map View 76x50 Tactical HUD 1 Map Filters NONE Filters NONE Steam 1 RUN: 0c47d7ee-c6d6-47a5-a69e-f86b249f1291